fUSD/lending_fUSD_20250401
["ID","MTS","AMOUNT","RATE_DAILY","PERIOD"]
[356954007,1743479511264,-500.0,0.00059178,120]
[356954008,1743479511272,-500.0,0.00059178,120]
[356954009,1743479511281,-443.3590794,0.00059178,120]
[356954010,1743479511290,-500.0,0.00059178,120]
[356954011,1743479511300,-500.0,0.00059178,120]
[356954012,1743479511309,-500.0,0.00059178,120]
[356954013,1743479511319,-500.0,0.00059178,120]
[356954014,1743479511328,-500.0,0.00059178,120]
[356954015,1743479511337,-570.08,0.00059178,120]
[356954016,1743479511346,-500.0,0.00059178,120]
[356954017,1743479511355,-500.0,0.00059178,120]
[356954018,1743479511365,-500.0,0.00059178,120]
[356954019,1743479511374,-1819.06,0.00059178,120]
[356954020,1743479511384,-500.0,0.00059178,120]
[356954021,1743479511393,-918.27,0.00059178,120]
[356954022,1743479511403,-500.0,0.00059178,120]
[356954023,1743479511415,-500.0,0.00059178,120]
[356954024,1743479511427,-500.0,0.00059178,120]
[356954025,1743479511438,-500.0,0.00059178,120]
[356954026,1743479511448,-2971.34,0.00059178,12]
[356954027,1743479511460,-500.0,0.00059178,120]
[356954028,1743479511472,-1181.47,0.00059178,120]
[356954029,1743479511482,-500.0,0.00059178,120]
[356954030,1743479511493,-500.0,0.00059178,120]
[356954031,1743479511503,-500.0,0.00059178,120]
[356954032,1743479511513,-500.0,0.00059178,120]
[356954033,1743479511523,-500.0,0.00059178,120]
[356954034,1743479511534,-500.0,0.00059178,120]
[356954035,1743479511544,-4409.19,0.00059178,120]
[356954036,1743479511555,-508.89076975,0.00059178,120]
[356954037,1743479511565,-500.0,0.00059178,120]
[356954038,1743479511576,-500.0,0.00059178,120]
[356954039,1743479511587,-500.0,0.00059178,120]
[356954040,1743479511598,-505.02699624,0.00059178,120]
[356954041,1743479511609,-792.71,0.00059178,120]
[356954042,1743479511620,-500.0,0.00059178,120]
[356954043,1743479511632,-500.0,0.00059178,120]
[356954044,1743479511644,-500.0,0.00059178,10]
[356954045,1743479511657,-525.87,0.00059178,120]
[356954046,1743479511668,-500.0,0.00059178,120]
[356954047,1743479511678,-500.0,0.00059178,120]
[356954048,1743479511690,-684.66,0.00059178,120]
[356954049,1743479511701,-500.0,0.00059178,120]
[356954050,1743479511711,-500.0,0.00059178,120]
[356954051,1743479511722,-505.09918744,0.00059178,120]
[356954052,1743479511732,-500.0,0.00059178,120]
[356954053,1743479511743,-500.0,0.00059178,120]
[356954054,1743479511753,-500.0,0.00059178,120]
[356954055,1743479511764,-500.0,0.00059178,120]
[356954056,1743479511774,-500.0,0.00059178,120]
[356954057,1743479511784,-500.0,0.00059178,120]
[356954058,1743479511793,-500.0,0.00059178,120]
[356954059,1743479511804,-500.0,0.00059178,120]
[356954060,1743479511815,-500.0,0.00059178,120]
[356954061,1743479511826,-500.0,0.00059178,120]
[356954062,1743479511837,-500.0,0.00059178,120]
[356954063,1743479511847,-500.0,0.00059178,120]
[356954064,1743479511858,-500.0,0.00059178,120]
[356954065,1743479511869,-500.0,0.00059178,120]
[356954066,1743479511880,-741.49,0.00059178,120]
[356954067,1743479511891,-500.0,0.00059178,120]
[356954068,1743479511902,-500.0,0.00059178,120]
[356954069,1743479511913,-500.0,0.00059178,120]
[356954070,1743479511923,-704.15,0.00059178,120]
[356954071,1743479511935,-500.0,0.00059178,120]
[356954072,1743479511946,-500.0,0.00059178,120]
[356954073,1743479511958,-500.0,0.00059178,120]
[356954074,1743479511969,-574.5,0.00059178,120]
[356954075,1743479511980,-500.0,0.00059178,120]
[356954076,1743479511991,-500.0,0.00059178,120]
[356954077,1743479512001,-391.07602058,0.00059178,120]
[356954078,1743479512013,-963.5,0.00059178,120]
[356954079,1743479512024,-976.08,0.00059178,120]
[356954080,1743479512035,-500.0,0.00059178,120]
[356954081,1743479512046,-500.0,0.00059178,120]
[356954082,1743479512057,-500.0,0.00059178,120]
[356954083,1743479512069,-813.79,0.00059178,120]
[356954084,1743479512080,-2053.01,0.00059178,120]
[356954085,1743479512091,-500.0,0.00059178,120]
[356954086,1743479512101,-500.0,0.00059178,120]
[356954087,1743479512112,-500.0,0.00059178,120]
[356954088,1743479512122,-500.0,0.00059178,120]
[356954089,1743479512134,-500.0,0.00059178,120]
[356954090,1743479512144,-500.0,0.00059178,120]
[356954091,1743479512155,-500.0,0.00059178,120]
[356954092,1743479512165,-500.0,0.00059178,120]
[356954093,1743479512176,-500.0,0.00059178,120]
[356954094,1743479512186,-500.0,0.00059178,120]
[356954095,1743479512196,-167.473304,0.00059178,120]
[356954096,1743479512207,-241.28379059,0.00059178,120]
[356954097,1743479512217,-500.0,0.00059178,120]
[356954098,1743479512227,-822.20032,0.000592,2]
[356954099,1743479512238,-232.81226,0.000592,120]
[356954100,1743479512248,-294.73266,0.000592,120]
[356954101,1743479512260,-9999.99999998,0.000593,2]
[356954102,1743479512270,-250000.0,0.000595,120]
[356954103,1743479512279,-500000.0,0.000595,120]
[356954104,1743479512290,-2000.0,0.000597,110]
[356954105,1743479512300,-500.0,0.00059726,120]
[356954106,1743479512310,-268.8348771,0.00059726,120]
[356954107,1743479512321,-594.3125511,0.00059726,120]
[356954108,1743479512331,-500.0,0.00059726,120]
[356954109,1743479512341,-500.0,0.00059726,120]
[356954110,1743479512351,-500.0,0.00059726,120]
[356954111,1743479512361,-500.0,0.00059726,120]
[356954112,1743479512371,-500.0,0.00059726,120]
[356954113,1743479512382,-500.0,0.00059726,120]
[356954114,1743479512391,-500.0,0.00059726,120]
[356954115,1743479512402,-500.0,0.00059726,120]
[356954116,1743479512411,-500.0,0.00059726,120]
[356954117,1743479512422,-576.365097,0.00059726,120]
[356954118,1743479512433,-500.0,0.00059726,120]
[356954119,1743479512444,-500.0,0.00059726,120]
[356954120,1743479512455,-500.0,0.00059726,120]
[356954121,1743479512467,-500.0,0.00059726,120]
[356954122,1743479512477,-500.0,0.00059726,120]
[356954123,1743479512487,-528.7043786,0.00059726,120]
[356954124,1743479512496,-500.0,0.00059726,120]
[356954125,1743479512506,-500.0,0.00059726,120]
[356954126,1743479512517,-500.0,0.00059726,120]
[356954127,1743479512526,-500.0,0.00059726,120]
[356954128,1743479512536,-500.0,0.00059726,120]
[356954129,1743479512546,-500.0,0.00059726,120]
[356954130,1743479512557,-500.0,0.00059726,120]
[356954131,1743479512567,-500.0,0.00059726,120]
[356954132,1743479512577,-500.0,0.00059726,120]
[356954133,1743479512588,-641.58527232,0.00059726,120]
[356954134,1743479512599,-500.0,0.00059726,120]
[356954135,1743479512610,-500.0,0.00059726,120]
[356954136,1743479512621,-586.9578439,0.00059726,120]
[356954137,1743479512631,-591.11461321,0.00059726,120]
[356954138,1743479512643,-500.0,0.00059726,120]
[356954139,1743479512654,-500.0,0.00059726,120]
[356954140,1743479512663,-500.0,0.00059726,120]
[356954141,1743479512675,-500.0,0.00059726,120]
[356954142,1743479512686,-500.0,0.00059726,120]
[356954143,1743479512697,-500.0,0.00059726,120]
[356954144,1743479512707,-500.0,0.00059726,120]
[356954145,1743479512718,-500.0,0.00059726,120]
[356954146,1743479512729,-500.0,0.00059726,120]
[356954147,1743479512740,-500.0,0.00059726,120]
[356954148,1743479512751,-598.99,0.00059726,2]
[356954149,1743479512762,-500.0,0.00059726,120]
[356954150,1743479512772,-500.0,0.00059726,120]
[356954151,1743479512782,-500.0,0.00059726,120]
[356954152,1743479512793,-500.0,0.00059726,120]
[356954153,1743479512803,-500.0,0.00059726,120]
[356954154,1743479512815,-749.15,0.00059726,120]
[356954155,1743479512828,-500.0,0.00059726,120]
[356954156,1743479512839,-500.0,0.00059726,120]
[356954157,1743479512850,-513.79,0.00059726,120]
[356954158,1743479512861,-500.0,0.00059726,120]
[356954159,1743479512871,-500.0,0.00059726,120]
[356954160,1743479512882,-500.0,0.00059726,120]
[356954161,1743479512892,-500.0,0.00059726,120]
[356954162,1743479512902,-500.0,0.00059726,120]
[356954163,1743479512913,-583.86449873,0.00059726,120]
[356954164,1743479512923,-500.0,0.00059726,120]
[356954165,1743479512933,-500.0,0.00059726,120]
[356954166,1743479512943,-500.0,0.00059726,120]
[356954167,1743479512953,-500.0,0.00059726,120]
[356954168,1743479512964,-500.0,0.00059726,120]
[356954169,1743479512974,-335.21457956,0.00059726,120]
[356954170,1743479512985,-1322.2,0.00059726,120]
[356954171,1743479512995,-500.0,0.00059726,120]
[356954172,1743479513006,-500.0,0.00059726,120]
[356954173,1743479513016,-479.8903443,0.00059726,120]
[356954174,1743479513027,-192.58425736,0.00059726,120]
[356954175,1743479513038,-173.62557573,0.00059726,120]
[356954176,1743479513049,-500.0,0.00059726,120]
[356954177,1743479513060,-500.0,0.00059726,120]
[356954178,1743479513070,-500.0,0.00059726,120]
[356954179,1743479513081,-600.52185061,0.00059726,120]
[356954180,1743479513091,-500.0,0.00059726,120]
[356954181,1743479513102,-500.0,0.00059726,120]
[356954182,1743479513113,-191.08807202,0.00059726,120]
[356954183,1743479513124,-233.02065833,0.00059726,120]
[356954184,1743479513135,-500.0,0.00059726,120]
[356954185,1743479513147,-500.0,0.00059726,120]
[356954186,1743479513159,-500.0,0.00059726,120]
[356954187,1743479513170,-500.0,0.00059726,120]
[356954188,1743479513181,-500.0,0.00059726,120]
[356954189,1743479513192,-500.0,0.00059726,120]
[356954190,1743479513202,-500.0,0.00059726,120]
[356954191,1743479513214,-683.72,0.00059726,120]
[356954192,1743479513224,-500.0,0.00059726,120]
[356954193,1743479513235,-500.0,0.00059726,120]
[356954194,1743479513245,-500.0,0.00059726,120]
[356954195,1743479513255,-500.0,0.00059726,120]
[356954196,1743479513266,-500.0,0.00059726,30]
[356954197,1743479513277,-500.0,0.00059726,120]
[356954198,1743479513287,-500.0,0.00059726,120]
[356954199,1743479513298,-500.0,0.00059726,120]
[356954200,1743479513308,-500.0,0.00059726,120]
[356954201,1743479513318,-167.46696108,0.00059726,120]
[356954202,1743479513328,-500.0,0.00059726,120]
[356954203,1743479513339,-500.0,0.00059726,120]
[356954204,1743479513350,-500.0,0.00059726,120]
[356954205,1743479513361,-500.0,0.00059726,120]
[356954206,1743479513371,-500.0,0.00059726,120]
[356954207,1743479513380,-280.27645921,0.00059726,120]
[356954208,1743479513390,-500.0,0.00059726,120]
[356954209,1743479513401,-500.0,0.00059726,120]
[356954210,1743479513411,-500.0,0.00059726,120]
[356954211,1743479513422,-500.0,0.00059726,120]
[356954212,1743479513432,-500.0,0.00059726,120]
[356954213,1743479513442,-500.0,0.00059726,120]
[356954214,1743479513453,-500.0,0.00059726,120]
[356954215,1743479513463,-500.0,0.00059726,120]
[356954216,1743479513473,-500.0,0.00059726,120]
[356954217,1743479513483,-500.0,0.00059726,120]
[356954218,1743479513494,-500.0,0.00059726,120]
[356954219,1743479513504,-500.0,0.00059726,120]
[356954220,1743479513515,-500.0,0.00059726,120]
[356954221,1743479513525,-500.0,0.00059726,120]
[356954222,1743479513535,-500.0,0.00059726,120]
[356954223,1743479513545,-500.0,0.00059726,120]
[356954224,1743479513556,-500.0,0.00059726,120]
[356954225,1743479513566,-497.93838206,0.00059726,120]
[356954226,1743479513576,-500.0,0.00059726,120]
[356954227,1743479513586,-403.28272715,0.00059726,120]
[356954228,1743479513596,-500.0,0.00059726,120]
[356954229,1743479513607,-500.0,0.00059726,120]
[356954230,1743479513618,-500.0,0.00059726,120]
[356954231,1743479513628,-500.0,0.00059726,120]
[356954232,1743479513639,-500.0,0.00059726,120]
[356954233,1743479513652,-500.0,0.00059726,120]
[356954234,1743479513661,-500.0,0.00059726,120]
[356954235,1743479513671,-500.0,0.00059726,120]
[356954236,1743479513681,-500.0,0.00059726,120]
[356954237,1743479513692,-500.0,0.00059726,120]
[356954238,1743479513702,-644.69494808,0.00059726,120]
[356954239,1743479513711,-500.0,0.00059726,120]
[356954240,1743479513723,-500.0,0.00059726,120]
[356954241,1743479513733,-1374.89,0.00059726,120]
[356954242,1743479513743,-500.0,0.00059726,120]
[356954243,1743479513753,-500.0,0.00059726,120]
[356954244,1743479513763,-500.0,0.00059726,120]
[356954245,1743479513773,-500.0,0.00059726,120]
[356954246,1743479513783,-500.0,0.00059726,120]
[356954247,1743479513793,-500.0,0.00059726,120]
[356954248,1743479513803,-538.70205831,0.00059726,120]
[356954249,1743479513814,-500.0,0.00059726,120]
[356954250,1743479513824,-500.0,0.00059726,120]
[356954251,1743479513835,-500.0,0.00059726,120]
[356954252,1743479513844,-500.0,0.00059726,120]
[356954253,1743479513854,-673.57,0.00059726,120]
[356954254,1743479513865,-500.0,0.00059726,120]
[356954255,1743479513874,-500.0,0.00059726,120]
[356954256,1743479513886,-500.0,0.00059726,120]
[356954257,1743479513896,-500.0,0.00059726,120]
[356954258,1743479513906,-500.0,0.00059726,120]
[356954259,1743479513917,-526.56,0.00059726,120]
[356954260,1743479513927,-500.0,0.00059726,120]
[356954261,1743479513937,-500.0,0.00059726,120]
[356954262,1743479513947,-492.36449008,0.00059726,120]
[356954263,1743479513958,-500.0,0.00059726,120]
[356954264,1743479513968,-500.0,0.00059726,120]
[356954265,1743479513979,-500.0,0.00059726,120]
[356954266,1743479513989,-209.66998692,0.00059726,120]
[356954267,1743479513999,-500.0,0.00059726,120]
[356954268,1743479514009,-959.13,0.00059726,120]
[356954269,1743479514019,-500.0,0.00059726,120]
[356954270,1743479514029,-500.0,0.00059726,120]
[356954271,1743479514039,-500.0,0.00059726,120]
[356954272,1743479514050,-500.0,0.00059726,120]
[356954273,1743479514060,-500.0,0.00059726,120]
[356954274,1743479514069,-181.72467266,0.00059726,120]
[356954275,1743479514079,-500.0,0.00059726,120]
[356954276,1743479514089,-500.0,0.00059726,120]
[356954277,1743479514099,-500.0,0.00059726,120]
[356954278,1743479514110,-500.0,0.00059726,120]
[356954279,1743479514121,-500.0,0.00059726,120]
[356954280,1743479514130,-777.43,0.00059726,2]
[356954281,1743479514140,-500.0,0.00059726,120]
[356954282,1743479514149,-500.0,0.00059726,120]
[356954283,1743479514160,-500.0,0.00059726,120]
[356954284,1743479514170,-500.0,0.00059726,120]
[356954285,1743479514180,-500.0,0.00059726,120]
[356954286,1743479514189,-773.05,0.00059726,120]
[356954287,1743479514199,-500.0,0.00059726,120]
[356954288,1743479514209,-902.36,0.00059726,2]
[356954289,1743479514219,-500.0,0.00059726,120]
[356954290,1743479514229,-500.0,0.00059726,120]
[356954291,1743479514239,-500.0,0.00059726,120]
[356954292,1743479514249,-500.0,0.00059726,120]
[356954293,1743479514258,-500.0,0.00059726,120]
[356954294,1743479514268,-500.0,0.00059726,120]
[356954295,1743479514277,-534.6851599,0.00059726,120]
[356954296,1743479514287,-500.0,0.00059726,120]
[356954297,1743479514296,-500.0,0.00059726,120]
[356954298,1743479514307,-500.0,0.00059726,120]
[356954299,1743479514317,-500.0,0.00059726,120]
[356954300,1743479514326,-500.0,0.00059726,120]
[356954301,1743479514336,-500.0,0.00059726,120]
[356954302,1743479514347,-500.0,0.00059726,120]
[356954303,1743479514357,-956.7,0.00059726,120]
[356954304,1743479514367,-500.0,0.00059726,120]
[356954305,1743479514378,-802.62,0.00059726,120]
[356954306,1743479514388,-500.0,0.00059726,120]
[356954307,1743479514397,-1301.4,0.00059726,120]
[356954308,1743479514408,-532.71,0.00059726,120]
[356954309,1743479514418,-151.52,0.00059726,120]
[356954310,1743479514429,-578.73193665,0.00059726,120]
[356954311,1743479514439,-381.84085996,0.00059726,120]
[356954312,1743479514450,-500.0,0.00059726,120]
[356954313,1743479514461,-500.0,0.00059726,120]
[356954314,1743479514471,-500.0,0.00059726,120]
[356954315,1743479514481,-500.0,0.00059726,120]
[356954316,1743479514491,-589.08,0.00059726,120]
[356954317,1743479514500,-500.0,0.00059726,120]
[356954318,1743479514510,-500.0,0.00059726,120]
[356954319,1743479514520,-3688.09,0.00059726,30]
[356954320,1743479514530,-500.0,0.00059726,120]
[356954321,1743479514540,-500.0,0.00059726,120]
[356954322,1743479514550,-500.0,0.00059726,120]
[356954323,1743479514561,-534.49,0.00059726,120]
[356954324,1743479514571,-265.82960109,0.00059726,120]
[356954325,1743479514580,-500.0,0.00059726,120]
[356954326,1743479514589,-627.37,0.00059726,120]
[356954327,1743479514599,-500.0,0.00059726,120]
[356954328,1743479514609,-756.17,0.00059726,120]
[356954329,1743479514619,-500.0,0.00059726,60]
[356954330,1743479514629,-566.66,0.00059726,120]
[356954331,1743479514639,-500.0,0.00059726,120]
[356954332,1743479514653,-500.0,0.00059726,120]
[356954333,1743479514663,-500.0,0.00059726,120]
[356954334,1743479514672,-500.0,0.00059726,120]
[356954335,1743479514682,-681.71,0.00059726,100]
[356954336,1743479514692,-500.0,0.00059726,120]
[356954337,1743479514702,-500.0,0.00059726,120]
[356954338,1743479514712,-500.0,0.00059726,120]
[356954339,1743479514722,-633.15,0.00059726,120]
[356954340,1743479514732,-500.0,0.00059726,120]
[356954341,1743479514742,-500.0,0.00059726,120]
[356954342,1743479514752,-500.0,0.00059726,120]
[356954343,1743479514763,-864.7,0.00059726,120]
[356954344,1743479514774,-500.0,0.00059726,120]
[356954345,1743479514785,-500.0,0.00059726,120]
[356954346,1743479514795,-500.0,0.00059726,120]
[356954347,1743479514805,-500.0,0.00059726,120]
[356954348,1743479514816,-500.0,0.00059726,120]
[356954349,1743479514826,-500.0,0.00059726,120]
[356954350,1743479514836,-1294.25,0.00059726,120]
[356954351,1743479514846,-225.5080392,0.00059726,120]
[356954352,1743479514856,-500.0,0.00059726,120]
[356954353,1743479514866,-500.0,0.00059726,120]
[356954354,1743479514876,-500.0,0.00059726,120]
[356954355,1743479514885,-26633.34,0.00059726,7]
[356954356,1743479514895,-500.0,0.00059726,120]
[356954357,1743479515291,-500.0,0.00059726,120]
[356954358,1743479515305,-500.0,0.00059726,120]
[356954359,1743479515315,-175.66268697,0.00059726,120]
[356954360,1743479515326,-790.5,0.00059726,120]
[356954361,1743479515335,-542.6641316,0.00059726,120]
[356954362,1743479515345,-500.0,0.00059726,120]
[356954363,1743479515355,-500.0,0.00059726,120]
[356954364,1743479515365,-500.0,0.00059726,120]
[356954365,1743479515375,-473.39335131,0.00059726,120]
[356954366,1743479515385,-500.0,0.00059726,120]
[356954367,1743479515395,-500.0,0.00059726,120]
[356954368,1743479515405,-500.0,0.00059726,120]
[356954369,1743479515415,-500.0,0.00059726,120]
[356954370,1743479515424,-524.62688121,0.00059726,120]
[356954371,1743479515434,-500.0,0.00059726,120]
[356954372,1743479515443,-500.0,0.00059726,120]
[356954373,1743479515452,-500.0,0.00059726,120]
[356954374,1743479515462,-500.0,0.00059726,120]
[356954375,1743479515472,-500.0,0.00059726,120]
[356954376,1743479515481,-500.0,0.00059726,120]
[356954377,1743479515491,-570.08,0.00059726,120]
[356954378,1743479515500,-500.0,0.00059726,120]
[356954379,1743479515509,-500.0,0.00059726,120]
[356954380,1743479515519,-500.0,0.00059726,120]
[356954381,1743479515528,-1819.06,0.00059726,120]
[356954382,1743479515538,-500.0,0.00059726,120]
[356954383,1743479515548,-918.27,0.00059726,120]
[356954384,1743479515558,-500.0,0.00059726,120]
[356954385,1743479515568,-500.0,0.00059726,120]
[356954386,1743479515578,-500.0,0.00059726,120]
[356954387,1743479515587,-500.0,0.00059726,120]
[356954388,1743479515597,-2971.34,0.00059726,12]
[356954389,1743479515607,-500.0,0.00059726,120]
[356954390,1743479515617,-1181.47,0.00059726,120]
[356954391,1743479515626,-500.0,0.00059726,120]
[356954392,1743479515635,-500.0,0.00059726,120]
[356954393,1743479515647,-394.89997597,0.00059726,120]
[356954394,1743479515656,-500.0,0.00059726,120]
[356954395,1743479515665,-500.0,0.00059726,120]
[356954396,1743479515675,-500.0,0.00059726,120]
[356954397,1743479515684,-4409.19,0.00059726,120]
[356954398,1743479515697,-500.0,0.00059726,120]
[356954399,1743479515712,-500.0,0.00059726,120]
[356954400,1743479515721,-500.0,0.00059726,120]
[356954401,1743479515735,-792.71,0.00059726,120]
[356954402,1743479515746,-500.0,0.00059726,120]
[356954403,1743479515755,-500.0,0.00059726,120]
[356954404,1743479515765,-203.12452846,0.00059726,10]
[356954405,1743479515774,-525.87,0.00059726,120]
[356954406,1743479515784,-500.0,0.00059726,120]
[356954407,1743479515793,-500.0,0.00059726,120]
[356954408,1743479515803,-684.66,0.00059726,120]
[356954409,1743479515814,-500.0,0.00059726,120]
[356954410,1743479515825,-415.76542774,0.00059726,120]
[356954411,1743479515836,-500.0,0.00059726,120]
[356954412,1743479515846,-500.0,0.00059726,120]
[356954413,1743479515857,-500.0,0.00059726,120]
[356954414,1743479515868,-500.0,0.00059726,120]
[356954415,1743479515877,-500.0,0.00059726,120]
[356954416,1743479515888,-500.0,0.00059726,120]
[356954417,1743479515899,-500.0,0.00059726,120]
[356954418,1743479515908,-500.0,0.00059726,120]
[356954419,1743479515917,-500.0,0.00059726,120]
[356954420,1743479515928,-500.0,0.00059726,120]
[356954421,1743479515938,-500.0,0.00059726,120]
[356954422,1743479515949,-500.0,0.00059726,120]
[356954423,1743479515959,-500.0,0.00059726,120]
[356954424,1743479515970,-741.49,0.00059726,120]
[356954425,1743479515979,-500.0,0.00059726,120]
[356954426,1743479515989,-500.0,0.00059726,120]
[356954427,1743479515999,-506.67360121,0.00059726,120]
[356954428,1743479516009,-500.0,0.00059726,120]
[356954429,1743479516018,-704.15,0.00059726,120]
[356954430,1743479516028,-500.0,0.00059726,120]
[356954431,1743479516038,-500.0,0.00059726,120]
[356954432,1743479516048,-500.0,0.00059726,120]
[356954433,1743479516059,-574.5,0.00059726,120]
[356954434,1743479516069,-500.0,0.00059726,120]
[356954435,1743479516079,-500.0,0.00059726,120]
[356954436,1743479516088,-963.5,0.00059726,120]
[356954437,1743479516098,-976.08,0.00059726,120]
[356954438,1743479516108,-500.0,0.00059726,120]
[356954439,1743479516118,-500.0,0.00059726,120]
[356954440,1743479516128,-500.0,0.00059726,120]
[356954441,1743479516138,-813.79,0.00059726,120]
[356954442,1743479516148,-2053.01,0.00059726,120]
[356954443,1743479516158,-500.0,0.00059726,120]
[356954444,1743479516167,-500.0,0.00059726,120]
[356954445,1743479516177,-500.0,0.00059726,120]
[356954446,1743479516187,-500.0,0.00059726,120]
[356954447,1743479516197,-500.0,0.00059726,120]
[356954448,1743479516206,-553.40600176,0.00059726,120]
[356954449,1743479516216,-500.0,0.00059726,120]
[356954450,1743479516226,-500.0,0.00059726,120]
[356954451,1743479516236,-500.0,0.00059726,120]
[356954452,1743479516245,-500.0,0.00059726,120]
[356954453,1743479516256,-500.0,0.00059726,120]
[356954454,1743479516266,-199.08,0.00059801,120]
[356954455,1743479516276,-250.0,0.0005987,30]
[356954456,1743479516285,-4000.0,0.0005989,7]
[356954457,1743479516295,-151.78,0.0005989,120]
[356954458,1743479516305,-1620.57188933,0.00059893,120]
[356954459,1743479516313,-4000.0,0.000599,7]
[356954460,1743479516324,-6000.0,0.000599,120]
[356954461,1743479516335,-497.69,0.00059908,2]
[356954462,1743479516345,-438.25714766,0.00059999,120]
[356954463,1743479516354,-436.5092925,0.00059999,7]
[356954464,1743479516364,-414.77743022,0.00059999,31]
[356954465,1743479516374,-173.15518124,0.00059999,120]
[356954466,1743479516385,-345.26808502,0.00059999,120]
[356954467,1743479516395,-454.52451205,0.00059999,120]
[356954468,1743479516405,-428.29480011,0.00059999,120]
[356954469,1743479516415,-500.0,0.00059999,120]
[356954470,1743479516425,-567.6311921,0.00059999,120]
[356954471,1743479516435,-500.0,0.00059999,120]
[356954472,1743479516445,-500.0,0.00059999,120]
[356954473,1743479516455,-500.0,0.00059999,120]
[356954474,1743479516465,-500.0,0.00059999,120]
[356954475,1743479516474,-625.65087302,0.00059999,120]
[356954476,1743479516483,-550.0,0.00059999,120]
[356954477,1743479516493,-154.45223601,0.00059999,120]
[356954478,1743479516503,-50000.0,0.0006,60]
[356954479,1743479516513,-1554.217788,0.0006,2]
[356954480,1743479516523,-942.26775766,0.0006,120]
[356954481,1743479516532,-194.8444769,0.0006,120]
[356954482,1743479516542,-494.60794964,0.0006,120]
[356954483,1743479516551,-311.19779207,0.0006,120]
[356954484,1743479516561,-638.6,0.0006,5]
[356954485,1743479516571,-1135.84717518,0.0006,30]
[356954486,1743479516581,-1509.92211127,0.0006,120]
[356954487,1743479516591,-699.35262319,0.0006,120]
[356954488,1743479516600,-478.33590805,0.0006,120]
[356954489,1743479516610,-150.0,0.0006,30]
[356954490,1743479516620,-692873.72917181,0.0006,120]
[356954491,1743479516629,-4000.0,0.0006,7]
[356954492,1743479516639,-500.0,0.0006,120]
[356954493,1743479516652,-30037.80398585,0.0006,25]
[356954494,1743479516662,-158.63075879,0.0006,120]
[356954495,1743479516671,-200.0,0.0006,120]
[356954496,1743479516681,-316.22332597,0.0006,2]
[356954497,1743479516850,-500.0,0.00056986,120]
[356954498,1743479516861,-2041.19892813,0.0006,2]
[356954499,1743479516872,-932.71246312,0.0006,2]
[356954500,1743479516881,-845.0933445,0.0006,120]
[356954501,1743479516901,-500.0,0.00054794,120]
[356954502,1743479516910,-500.0,0.00055342,120]
[356954503,1743479516919,-2079.87608044,0.0006,120]
[356954504,1743479516930,-287.12993791,0.0006,120]
[356954505,1743479516945,-264.939999,0.00055342,120]
[356954506,1743479516958,-235.060001,0.00055342,120]